[Event "*** Titled Tuesday Blitz"]
[Site "Chess.com"]
[Date "2020.11.24"]
[Round "6"]
[White "JRenatoMaranhao"]
[Black "ambaixador"]
[Result "0-1"]
[WhiteElo "1900"]
[BlackElo "2432"]
[TimeControl "180+1"]
[EndTime "11:24:22 PST"]
[Termination "ambaixador won by checkmate"]

1. e4 {[%clk 0:03:00.9]} 1... c5 {[%clk 0:02:59.8]} 2. Nf3 {[%clk 0:02:49.7]}
2... d6 {[%clk 0:03:00]} 3. Bc4 {[%clk 0:02:48.4]} 3... Nf6 {[%clk 0:02:59.9]}
4. Nc3 {[%clk 0:02:40.9]} 4... a6 {[%clk 0:02:59.7]} 5. a4 {[%clk 0:02:39]} 5...
Nc6 {[%clk 0:02:59.6]} 6. O-O {[%clk 0:02:31.1]} 6... e6 {[%clk 0:02:59.3]} 7.
Re1 {[%clk 0:02:23.5]} 7... Be7 {[%clk 0:02:58.9]} 8. d3 {[%clk 0:02:13.2]} 8...
O-O {[%clk 0:02:58.6]} 9. Bg5 {[%clk 0:02:13]} 9... Rb8 {[%clk 0:02:49.5]} 10.
Qe2 {[%clk 0:02:06.7]} 10... Nd4 {[%clk 0:02:47.8]} 11. Nxd4 {[%clk 0:02:06]}
11... cxd4 {[%clk 0:02:48.7]} 12. Na2 {[%clk 0:01:58.5]} 12... b5 {[%clk
0:02:48.5]} 13. axb5 {[%clk 0:01:57.5]} 13... axb5 {[%clk 0:02:49.4]} 14. Bb3
{[%clk 0:01:58]} 14... Nd7 {[%clk 0:02:45.7]} 15. Bd2 {[%clk 0:01:56.3]} 15...
Nc5 {[%clk 0:02:40.2]} 16. Nc1 {[%clk 0:01:40.6]} 16... Bb7 {[%clk 0:02:21]} 17.
Ba2 {[%clk 0:01:38.6]} 17... Ra8 {[%clk 0:02:20.2]} 18. b4 {[%clk 0:01:27.5]}
18... Na4 {[%clk 0:02:18.2]} 19. Nb3 {[%clk 0:01:24.9]} 19... Qb6 {[%clk
0:02:13.2]} 20. Na5 {[%clk 0:00:44.1]} 20... Rac8 {[%clk 0:02:07.3]} 21. Nxb7
{[%clk 0:00:42.2]} 21... Qxb7 {[%clk 0:02:08.2]} 22. Bb3 {[%clk 0:00:40.8]}
22... Nc3 {[%clk 0:02:08.2]} 23. Qg4 {[%clk 0:00:38]} 23... Kh8 {[%clk
0:01:51.6]} 24. Ra5 {[%clk 0:00:25]} 24... Ra8 {[%clk 0:01:32.4]} 25. Rea1
{[%clk 0:00:23.1]} 25... Rxa5 {[%clk 0:01:31.5]} 26. bxa5 {[%clk 0:00:24]} 26...
Qa6 {[%clk 0:01:26.1]} 27. f4 {[%clk 0:00:16.9]} 27... Bd8 {[%clk 0:01:11.5]}
28. f5 {[%clk 0:00:14.6]} 28... e5 {[%clk 0:01:04.3]} 29. Qh5 {[%clk 0:00:12.3]}
29... Kg8 {[%clk 0:00:59.9]} 30. Rf1 {[%clk 0:00:09.9]} 30... Bf6 {[%clk
0:00:31.5]} 31. g4 {[%clk 0:00:08.8]} 31... h6 {[%clk 0:00:24.5]} 32. h4 {[%clk
0:00:08.1]} 32... Ne2+ {[%clk 0:00:21.2]} 33. Kf2 {[%clk 0:00:07.9]} 33... Nf4
{[%clk 0:00:20.9]} 34. Bxf4 {[%clk 0:00:07.9]} 34... exf4 {[%clk 0:00:21.8]} 35.
g5 {[%clk 0:00:08.1]} 35... Be5 {[%clk 0:00:16.6]} 36. gxh6 {[%clk 0:00:07]}
36... Qxa5 {[%clk 0:00:16.3]} 37. hxg7 {[%clk 0:00:04.6]} 37... Qd2+ {[%clk
0:00:15.8]} 38. Kg1 {[%clk 0:00:03.9]} 38... Bxg7 {[%clk 0:00:12.4]} 39. Rf2
{[%clk 0:00:04.1]} 39... Qe3 {[%clk 0:00:11.3]} 40. Kf1 {[%clk 0:00:03.3]} 40...
f3 {[%clk 0:00:05.7]} 41. Qxf3 {[%clk 0:00:02.4]} 41... Qxf3 {[%clk 0:00:05.5]}
42. Rxf3 {[%clk 0:00:03.3]} 42... Be5 {[%clk 0:00:06.2]} 43. Rf2 {[%clk
0:00:02.9]} 43... Kg7 {[%clk 0:00:06.5]} 44. Rg2+ {[%clk 0:00:03.3]} 44... Kf6
{[%clk 0:00:07.4]} 45. Rg1 {[%clk 0:00:02]} 45... Rh8 {[%clk 0:00:08.3]} 46. Rh1
{[%clk 0:00:02.4]} 46... Rh6 {[%clk 0:00:08.3]} 47. h5 {[%clk 0:00:03.3]} 47...
Bf4 {[%clk 0:00:08.7]} 48. Kg2 {[%clk 0:00:03.3]} 48... Ke5 {[%clk 0:00:09.3]}
49. Kf3 {[%clk 0:00:03.6]} 49... Be3 {[%clk 0:00:09.6]} 50. Rh3 {[%clk
0:00:03.7]} 50... f6 {[%clk 0:00:10]} 51. Kg4 {[%clk 0:00:03.7]} 51... Rh8
{[%clk 0:00:10.1]} 52. Bf7 {[%clk 0:00:03.2]} 52... Rf8 {[%clk 0:00:10.1]} 53.
Bb3 {[%clk 0:00:01.8]} 53... Rh8 {[%clk 0:00:11]} 54. Bd5 {[%clk 0:00:01.3]}
54... Bd2 {[%clk 0:00:10.6]} 55. Bb3 {[%clk 0:00:01.5]} 55... Bg5 {[%clk
0:00:10.8]} 56. Be6 {[%clk 0:00:01.6]} 56... Rh7 {[%clk 0:00:11.2]} 57. Bb3
{[%clk 0:00:02]} 57... Rg7 {[%clk 0:00:11.7]} 58. Kf3 {[%clk 0:00:02.4]} 58...
Bh6 {[%clk 0:00:11.7]} 59. Rg3 {[%clk 0:00:01.8]} 59... Bg5 {[%clk 0:00:11.7]}
60. Rg4 {[%clk 0:00:01.9]} 60... Rh7 {[%clk 0:00:11.7]} 61. Rg3 {[%clk
0:00:01.3]} 61... Rxh5 {[%clk 0:00:11.6]} 62. Rg2 {[%clk 0:00:02.2]} 62... Rh1
{[%clk 0:00:11.3]} 63. Ke2 {[%clk 0:00:02.4]} 63... Kf4 {[%clk 0:00:10.8]} 64.
Rf2+ {[%clk 0:00:02.4]} 64... Kg4 {[%clk 0:00:11]} 65. Rg2+ {[%clk 0:00:02.7]}
65... Kf4 {[%clk 0:00:11.3]} 66. Be6 {[%clk 0:00:02.8]} 66... Rc1 {[%clk
0:00:10.4]} 67. Bb3 {[%clk 0:00:02.4]} 67... Ra1 {[%clk 0:00:06.1]} 68. Rh2
{[%clk 0:00:02.6]} 68... Kg3 {[%clk 0:00:06.1]} 69. Rh7 {[%clk 0:00:02.3]} 69...
Rf1 {[%clk 0:00:06]} 70. Rb7 {[%clk 0:00:02.5]} 70... Rf2+ {[%clk 0:00:06.2]}
71. Ke1 {[%clk 0:00:02]} 71... Rh2 {[%clk 0:00:05.6]} 72. Rxb5 {[%clk
0:00:02.1]} 72... Kf3 {[%clk 0:00:06.1]} 73. c3 {[%clk 0:00:01.3]} 73... Rh1#
{[%clk 0:00:05.6]} 0-1

[Event "*** Titled Tuesday Blitz"]
[Site "Chess.com"]
[Date "2020.11.24"]
[Round "6"]
[White "Grandmaster2B"]
[Black "RobertoJBM"]
[Result "1-0"]
[WhiteElo "2531"]
[BlackElo "2684"]
[TimeControl "180+1"]
[EndTime "11:24:25 PST"]
[Termination "Grandmaster2B won on time"]

1. e4 {[%clk 0:03:00.9]} 1... c6 {[%clk 0:02:58.9]} 2. d4 {[%clk 0:02:58.3]}
2... d5 {[%clk 0:02:59.8]} 3. exd5 {[%clk 0:02:58]} 3... cxd5 {[%clk 0:03:00]}
4. Bd3 {[%clk 0:02:58.4]} 4... Nc6 {[%clk 0:03:00]} 5. c3 {[%clk 0:02:57.4]}
5... g6 {[%clk 0:03:00.3]} 6. Nf3 {[%clk 0:02:56.8]} 6... Nf6 {[%clk 0:02:59.1]}
7. O-O {[%clk 0:02:56.6]} 7... Bg7 {[%clk 0:02:59.1]} 8. Bf4 {[%clk 0:02:53.4]}
8... Nh5 {[%clk 0:02:59.1]} 9. Be3 {[%clk 0:02:49.6]} 9... Qc7 {[%clk
0:02:57.9]} 10. Nbd2 {[%clk 0:02:48]} 10... O-O {[%clk 0:02:55.5]} 11. Re1
{[%clk 0:02:48.3]} 11... Bd7 {[%clk 0:02:43]} 12. Nb3 {[%clk 0:02:30]} 12...
Rad8 {[%clk 0:02:39.8]} 13. Bf1 {[%clk 0:02:25.7]} 13... Rfe8 {[%clk 0:02:36.9]}
14. Nc5 {[%clk 0:02:20.8]} 14... Bc8 {[%clk 0:02:36.8]} 15. Nd3 {[%clk
0:02:17.1]} 15... b6 {[%clk 0:02:24.5]} 16. Nfe5 {[%clk 0:02:00.3]} 16... Bb7
{[%clk 0:01:56.2]} 17. g4 {[%clk 0:01:48.4]} 17... Nf6 {[%clk 0:01:54.4]} 18.
Bf4 {[%clk 0:01:47]} 18... Qc8 {[%clk 0:01:52.3]} 19. h3 {[%clk 0:01:43.5]}
19... Ne4 {[%clk 0:01:47.9]} 20. f3 {[%clk 0:01:35.5]} 20... Nd6 {[%clk
0:01:42.2]} 21. Nxc6 {[%clk 0:01:31.2]} 21... Bxc6 {[%clk 0:01:43]} 22. Ne5
{[%clk 0:01:29.2]} 22... Bb7 {[%clk 0:01:42.2]} 23. Kh2 {[%clk 0:01:11.7]} 23...
f6 {[%clk 0:01:39.5]} 24. Nd3 {[%clk 0:01:08.5]} 24... Nf7 {[%clk 0:01:38.8]}
25. Qa4 {[%clk 0:00:48.5]} 25... e5 {[%clk 0:01:20]} 26. Bg3 {[%clk 0:00:37.5]}
26... e4 {[%clk 0:01:10.9]} 27. Nf4 {[%clk 0:00:32.2]} 27... a6 {[%clk
0:01:00.7]} 28. Qb3 {[%clk 0:00:25.2]} 28... f5 {[%clk 0:00:33]} 29. Qxb6 {[%clk
0:00:20.3]} 29... g5 {[%clk 0:00:31.4]} 30. Nh5 {[%clk 0:00:15.7]} 30... f4
{[%clk 0:00:31.6]} 31. Bf2 {[%clk 0:00:09]} 31... Rd6 {[%clk 0:00:27.9]} 32. Qb3
{[%clk 0:00:07]} 32... e3 {[%clk 0:00:23.9]} 33. Bg1 {[%clk 0:00:06.8]} 33...
Bf8 {[%clk 0:00:24.2]} 34. Bd3 {[%clk 0:00:06.8]} 34... Qc7 {[%clk 0:00:17.5]}
35. Qc2 {[%clk 0:00:07.3]} 35... Nd8 {[%clk 0:00:17.6]} 36. b3 {[%clk 0:00:06]}
36... Re7 {[%clk 0:00:13.6]} 37. Rad1 {[%clk 0:00:05]} 37... Nc6 {[%clk
0:00:14]} 38. Bf5 {[%clk 0:00:03.9]} 38... Kh8 {[%clk 0:00:12.6]} 39. Qb2 {[%clk
0:00:04.1]} 39... Bg7 {[%clk 0:00:10.4]} 40. h4 {[%clk 0:00:03.2]} 40... h6
{[%clk 0:00:09.8]} 41. hxg5 {[%clk 0:00:03.4]} 41... hxg5 {[%clk 0:00:10.7]} 42.
Kg2 {[%clk 0:00:02.9]} 42... Kg8 {[%clk 0:00:11.2]} 43. Bh2 {[%clk 0:00:03.4]}
43... Bf8 {[%clk 0:00:11.3]} 44. Bd3 {[%clk 0:00:03.8]} 44... Rh6 {[%clk
0:00:11.5]} 45. Rh1 {[%clk 0:00:04.1]} 45... Nd8 {[%clk 0:00:11.6]} 46. Bg1
{[%clk 0:00:04.3]} 46... Ne6 {[%clk 0:00:11.6]} 47. Qe2 {[%clk 0:00:04.7]} 47...
Rf7 {[%clk 0:00:11.6]} 48. Qb2 {[%clk 0:00:02.3]} 48... Rd7 {[%clk 0:00:08.8]}
49. Qc2 {[%clk 0:00:02.3]} 49... Kf7 {[%clk 0:00:07.4]} 50. Bf5 {[%clk
0:00:02.3]} 50... Rd6 {[%clk 0:00:06.8]} 51. c4 {[%clk 0:00:02.1]} 51... dxc4
{[%clk 0:00:05.4]} 52. Bxe6+ {[%clk 0:00:01.9]} 52... Kxe6 {[%clk 0:00:05.4]}
53. Qf5+ {[%clk 0:00:01.9]} 53... Ke7 {[%clk 0:00:05.9]} 54. Qe5+ {[%clk
0:00:01.8]} 54... Kd7 {[%clk 0:00:05.3]} 55. Qf5+ {[%clk 0:00:02]} 55... Rde6
{[%clk 0:00:05.3]} 56. Qxf8 {[%clk 0:00:02.1]} 56... Qd8 {[%clk 0:00:04.6]} 57.
Qxd8+ {[%clk 0:00:02.2]} 57... Kxd8 {[%clk 0:00:05.5]} 58. bxc4 {[%clk
0:00:02.9]} 58... Re7 {[%clk 0:00:03.8]} 59. d5 {[%clk 0:00:02.3]} 59... Rc7
{[%clk 0:00:03.8]} 60. Rd4 {[%clk 0:00:01.7]} 60... Rc5 {[%clk 0:00:04.2]} 61.
d6 {[%clk 0:00:02]} 61... Re6 {[%clk 0:00:03.9]} 62. Bh2 {[%clk 0:00:02.1]}
62... Kd7 {[%clk 0:00:04.3]} 63. Re1 {[%clk 0:00:02.4]} 63... Rxd6 {[%clk
0:00:04.6]} 64. Nf6+ {[%clk 0:00:03]} 64... Ke6 {[%clk 0:00:04.4]} 65. Rxd6+
{[%clk 0:00:03.7]} 65... Kxd6 {[%clk 0:00:05.2]} 66. Rd1+ {[%clk 0:00:01.5]}
66... Ke6 {[%clk 0:00:05.8]} 67. Ne4 {[%clk 0:00:01.2]} 67... Rxc4 {[%clk
0:00:06.3]} 68. Nxg5+ {[%clk 0:00:01.2]} 68... Ke5 {[%clk 0:00:06.8]} 69. Nf7+
{[%clk 0:00:01.3]} 69... Ke6 {[%clk 0:00:07.2]} 70. Nd8+ {[%clk 0:00:01.6]}
70... Ke5 {[%clk 0:00:07.4]} 71. Nxb7 {[%clk 0:00:02.5]} 71... Rc2+ {[%clk
0:00:08]} 72. Kh3 {[%clk 0:00:03.1]} 72... Rxa2 {[%clk 0:00:08]} 73. Nc5 {[%clk
0:00:03.6]} 73... Rc2 {[%clk 0:00:07.8]} 74. Nd3+ {[%clk 0:00:04.5]} 74... Kd4
{[%clk 0:00:08.2]} 75. Nxf4+ {[%clk 0:00:05.2]} 75... Rd2 {[%clk 0:00:08.8]} 76.
Re1 {[%clk 0:00:05.1]} 76... e2 {[%clk 0:00:08.7]} 77. Nxe2+ {[%clk 0:00:05]}
77... Ke3 {[%clk 0:00:09.6]} 78. Ng3+ {[%clk 0:00:05.9]} 78... Kf2 {[%clk
0:00:10]} 79. Ra1 {[%clk 0:00:05.4]} 79... Kxf3 {[%clk 0:00:10.3]} 80. Ra3+
{[%clk 0:00:05.7]} 80... Rd3 {[%clk 0:00:10.4]} 81. Rxd3+ {[%clk 0:00:05.8]}
81... Kf2 {[%clk 0:00:10.6]} 82. Ra3 {[%clk 0:00:06.7]} 1-0

[Event "*** Titled Tuesday Blitz"]
[Site "Chess.com"]
[Date "2020.11.24"]
[Round "6"]
[White "theblitzchamp"]
[Black "ChainsOfFantasia"]
[Result "1-0"]
[WhiteElo "2613"]
[BlackElo "2477"]
[TimeControl "180+1"]
[EndTime "11:24:26 PST"]
[Termination "theblitzchamp won by resignation"]

1. e4 {[%clk 0:03:00.9]} 1... e6 {[%clk 0:02:51.1]} 2. Nf3 {[%clk 0:02:59.7]}
2... d5 {[%clk 0:02:52]} 3. Nc3 {[%clk 0:03:00.4]} 3... Nf6 {[%clk 0:02:50.2]}
4. e5 {[%clk 0:03:00.8]} 4... Nfd7 {[%clk 0:02:47.7]} 5. d4 {[%clk 0:03:01.7]}
5... c5 {[%clk 0:02:47.1]} 6. dxc5 {[%clk 0:03:02.6]} 6... Nc6 {[%clk
0:02:42.5]} 7. Bf4 {[%clk 0:03:02.7]} 7... Nxc5 {[%clk 0:02:38.7]} 8. Bb5 {[%clk
0:03:01.5]} 8... a6 {[%clk 0:02:38.4]} 9. Bxc6+ {[%clk 0:03:01.6]} 9... bxc6
{[%clk 0:02:39.3]} 10. O-O {[%clk 0:03:02]} 10... Be7 {[%clk 0:02:39.3]} 11. Re1
{[%clk 0:02:59.6]} 11... a5 {[%clk 0:02:39.6]} 12. Qd2 {[%clk 0:02:58.4]} 12...
a4 {[%clk 0:02:35.6]} 13. Nd4 {[%clk 0:02:51.2]} 13... Bb7 {[%clk 0:02:34.2]}
14. Re3 {[%clk 0:02:49.7]} 14... Qb6 {[%clk 0:02:32.4]} 15. Rg3 {[%clk
0:02:44.7]} 15... g6 {[%clk 0:02:30.3]} 16. Rb1 {[%clk 0:02:38.9]} 16... Nd7
{[%clk 0:02:11.3]} 17. b3 {[%clk 0:02:08.6]} 17... axb3 {[%clk 0:02:05.7]} 18.
Rxb3 {[%clk 0:01:52.3]} 18... Qc7 {[%clk 0:02:03]} 19. Nf3 {[%clk 0:01:44.3]}
19... Nc5 {[%clk 0:01:54.1]} 20. Rb1 {[%clk 0:01:41.9]} 20... Ba6 {[%clk
0:01:36.9]} 21. Bg5 {[%clk 0:01:35]} 21... Bxg5 {[%clk 0:01:18.9]} 22. Nxg5
{[%clk 0:01:33.4]} 22... Qxe5 {[%clk 0:01:13]} 23. Re1 {[%clk 0:01:12.3]} 23...
Qd6 {[%clk 0:01:09.1]} 24. Qd4 {[%clk 0:01:03.4]} 24... O-O {[%clk 0:00:45.7]}
25. Nxh7 {[%clk 0:00:34]} 25... e5 {[%clk 0:00:34.1]} 26. Qh4 {[%clk 0:00:33.7]}
26... Kg7 {[%clk 0:00:29.7]} 27. Rh3 {[%clk 0:00:25.8]} 27... Rh8 {[%clk
0:00:21.8]} 28. Qh6+ {[%clk 0:00:20.3]} 28... Kg8 {[%clk 0:00:21.9]} 29. g4
{[%clk 0:00:16.9]} 29... Ne4 {[%clk 0:00:14.7]} 30. Nxe4 {[%clk 0:00:05.7]}
30... dxe4 {[%clk 0:00:15.6]} 31. g5 {[%clk 0:00:06]} 31... Rd8 {[%clk 0:00:08]}
32. Nf6+ {[%clk 0:00:05.9]} 32... Qxf6 {[%clk 0:00:08.3]} 33. gxf6 {[%clk
0:00:06.6]} 33... Rxh6 {[%clk 0:00:09.1]} 34. Rxh6 {[%clk 0:00:07.3]} 34... Rd6
{[%clk 0:00:05.2]} 35. Rh4 {[%clk 0:00:07]} 35... Rxf6 {[%clk 0:00:04.8]} 36.
Rhxe4 {[%clk 0:00:07.7]} 36... Rd6 {[%clk 0:00:04.2]} 37. Rxe5 {[%clk 0:00:08]}
37... Rd2 {[%clk 0:00:04.8]} 38. Rc5 {[%clk 0:00:08.2]} 38... Bb5 {[%clk
0:00:04.6]} 39. c4 {[%clk 0:00:06.3]} 39... Ba4 {[%clk 0:00:05]} 40. a3 {[%clk
0:00:06.8]} 40... Rd3 {[%clk 0:00:04.4]} 41. Re3 {[%clk 0:00:07.2]} 41... Rd1+
{[%clk 0:00:03.9]} 42. Kg2 {[%clk 0:00:07.7]} 42... Kg7 {[%clk 0:00:03.6]} 43.
h4 {[%clk 0:00:08.1]} 43... Rc1 {[%clk 0:00:02.4]} 44. Kg3 {[%clk 0:00:07.5]}
44... Rc2 {[%clk 0:00:02.4]} 45. h5 {[%clk 0:00:07.6]} 45... Rc1 {[%clk
0:00:02.4]} 46. hxg6 {[%clk 0:00:07.5]} 46... Kxg6 {[%clk 0:00:03.1]} 47. Re4
{[%clk 0:00:07.6]} 47... Rg1+ {[%clk 0:00:03.3]} 48. Kf3 {[%clk 0:00:07.7]}
48... Ra1 {[%clk 0:00:04.1]} 49. Re3 {[%clk 0:00:07.4]} 49... Rb1 {[%clk
0:00:03.6]} 50. Ra5 {[%clk 0:00:07.8]} 50... Bc2 {[%clk 0:00:02.8]} 51. Ra6
{[%clk 0:00:08.1]} 51... Bf5 {[%clk 0:00:02.6]} 52. Rxc6+ {[%clk 0:00:07.9]}
52... Kg5 {[%clk 0:00:03.5]} 53. Rc5 {[%clk 0:00:08.8]} 53... Kg6 {[%clk
0:00:02.8]} 54. Kf4 {[%clk 0:00:09]} 54... Be6 {[%clk 0:00:02.6]} 55. Rg3+
{[%clk 0:00:09.4]} 55... Kf6 {[%clk 0:00:02.6]} 56. a4 {[%clk 0:00:09.8]} 56...
Rb2 {[%clk 0:00:03.5]} 57. a5 {[%clk 0:00:10.1]} 57... Ra2 {[%clk 0:00:04]} 58.
Rf3 {[%clk 0:00:10]} 58... Ke7 {[%clk 0:00:03.9]} 59. Kg3 {[%clk 0:00:10.5]}
59... Kd6 {[%clk 0:00:04.8]} 60. Rb5 {[%clk 0:00:09.8]} 60... Bxc4 {[%clk
0:00:05]} 61. Rb6+ {[%clk 0:00:10.2]} 61... Kc5 {[%clk 0:00:05.3]} 62. Rf5+
{[%clk 0:00:10.7]} 62... Kd4 {[%clk 0:00:05.7]} 63. Rc6 {[%clk 0:00:09.2]} 63...
Bd3 {[%clk 0:00:04.8]} 64. Rd6+ {[%clk 0:00:08.3]} 64... Ke4 {[%clk 0:00:05]}
65. Rf4+ {[%clk 0:00:08.6]} 65... Ke5 {[%clk 0:00:05.2]} 66. Rxd3 {[%clk
0:00:09.2]} 66... Rxa5 {[%clk 0:00:06.1]} 67. Re3+ {[%clk 0:00:09.8]} 67... Kd6
{[%clk 0:00:05.5]} 68. Rf6+ {[%clk 0:00:10.4]} 68... Kd7 {[%clk 0:00:04.6]} 69.
Rxf7+ {[%clk 0:00:11.3]} 69... Kd6 {[%clk 0:00:05.5]} 70. Rf4 {[%clk 0:00:11.5]}
70... Rg5+ {[%clk 0:00:05.1]} 71. Kf3 {[%clk 0:00:12.4]} 71... Rc5 {[%clk
0:00:06]} 72. Rd4+ {[%clk 0:00:11.9]} 72... Kc7 {[%clk 0:00:05.4]} 73. Rdd3
{[%clk 0:00:12]} 73... Rh5 {[%clk 0:00:06.3]} 74. Rc3+ {[%clk 0:00:11.9]} 74...
Kd6 {[%clk 0:00:06.1]} 75. Ke2 {[%clk 0:00:12.4]} 75... Rh1 {[%clk 0:00:05.8]}
76. Rcd3+ {[%clk 0:00:12.7]} 76... Kc5 {[%clk 0:00:06.3]} 77. f4 {[%clk
0:00:13.3]} 77... Rh2+ {[%clk 0:00:05.8]} 78. Kf3 {[%clk 0:00:13.5]} 78... Rh3+
{[%clk 0:00:06.2]} 79. Ke4 {[%clk 0:00:14]} 79... Rh2 {[%clk 0:00:04.9]} 80.
Rd5+ {[%clk 0:00:14.1]} 80... Kc6 {[%clk 0:00:04.8]} 81. Rd1 {[%clk 0:00:13.5]}
81... Rf2 {[%clk 0:00:04.5]} 82. Rc3+ {[%clk 0:00:13.6]} 82... Kb5 {[%clk
0:00:04]} 83. Rb1+ {[%clk 0:00:14.1]} 83... Ka4 {[%clk 0:00:04.5]} 84. Rc8
{[%clk 0:00:14.7]} 84... Re2+ {[%clk 0:00:03.2]} 85. Kf5 {[%clk 0:00:15.2]} 1-0

[Event "*** Titled Tuesday Blitz"]
[Site "Chess.com"]
[Date "2020.11.24"]
[Round "6"]
[White "biostatistician"]
[Black "Kislov_Oleg"]
[Result "1/2-1/2"]
[WhiteElo "2542"]
[BlackElo "2375"]
[TimeControl "180+1"]
[EndTime "11:25:02 PST"]
[Termination "Game drawn by agreement"]

1. d4 {[%clk 0:02:58.9]} 1... Nf6 {[%clk 0:02:59.1]} 2. Nf3 {[%clk 0:02:59.8]}
2... d5 {[%clk 0:02:58.3]} 3. c4 {[%clk 0:02:59.2]} 3... e6 {[%clk 0:02:58.6]}
4. Bg5 {[%clk 0:02:58.8]} 4... Bb4+ {[%clk 0:02:55.6]} 5. Nc3 {[%clk 0:02:58.8]}
5... h6 {[%clk 0:02:55.2]} 6. Bxf6 {[%clk 0:02:58.7]} 6... Qxf6 {[%clk
0:02:55.9]} 7. e3 {[%clk 0:02:59.3]} 7... O-O {[%clk 0:02:55.2]} 8. Rc1 {[%clk
0:02:59.6]} 8... c5 {[%clk 0:02:44.5]} 9. dxc5 {[%clk 0:02:56.7]} 9... Nc6
{[%clk 0:02:32.3]} 10. a3 {[%clk 0:02:49.8]} 10... Bxc5 {[%clk 0:02:24.4]} 11.
cxd5 {[%clk 0:02:48.3]} 11... exd5 {[%clk 0:02:18.5]} 12. Qxd5 {[%clk
0:02:49.2]} 12... Bb6 {[%clk 0:02:15.7]} 13. Be2 {[%clk 0:02:48.3]} 13... Be6
{[%clk 0:02:14.7]} 14. Qe4 {[%clk 0:02:45.9]} 14... Rfd8 {[%clk 0:02:08.8]} 15.
O-O {[%clk 0:02:44.1]} 15... Bf5 {[%clk 0:02:06.2]} 16. Qh4 {[%clk 0:02:40.8]}
16... g5 {[%clk 0:02:05.4]} 17. Qg3 {[%clk 0:02:36.9]} 17... Rac8 {[%clk
0:02:00.3]} 18. h4 {[%clk 0:02:37]} 18... g4 {[%clk 0:01:40.6]} 19. Nh2 {[%clk
0:02:17.7]} 19... h5 {[%clk 0:01:40.3]} 20. Qf4 {[%clk 0:02:12.9]} 20... Bc7
{[%clk 0:01:23.9]} 21. Qg5+ {[%clk 0:02:12.7]} 21... Qxg5 {[%clk 0:01:24.2]} 22.
hxg5 {[%clk 0:02:13.6]} 22... Kg7 {[%clk 0:01:13.9]} 23. Rfd1 {[%clk 0:02:00]}
23... Kg6 {[%clk 0:01:12.8]} 24. f4 {[%clk 0:02:00.1]} 24... gxf3 {[%clk
0:01:11.9]} 25. Nxf3 {[%clk 0:02:00.3]} 25... Bb6 {[%clk 0:01:12.3]} 26. Kf2
{[%clk 0:01:56.6]} 26... Re8 {[%clk 0:01:09.3]} 27. Nd5 {[%clk 0:01:56.6]} 27...
Bd8 {[%clk 0:01:00.2]} 28. Nf4+ {[%clk 0:01:52]} 28... Kh7 {[%clk 0:00:55.8]}
29. Nh4 {[%clk 0:01:50.3]} 29... Bg6 {[%clk 0:00:52.8]} 30. Nhxg6 {[%clk
0:01:40.9]} 30... fxg6 {[%clk 0:00:51.8]} 31. Rd7+ {[%clk 0:01:41.2]} 31... Re7
{[%clk 0:00:52]} 32. Rcd1 {[%clk 0:01:41.3]} 32... Bb6 {[%clk 0:00:31.1]} 33.
Rxe7+ {[%clk 0:01:40.2]} 33... Nxe7 {[%clk 0:00:30.9]} 34. Rd7 {[%clk
0:01:38.8]} 34... Rc7 {[%clk 0:00:31.2]} 35. Rxc7 {[%clk 0:01:39.1]} 35... Bxc7
{[%clk 0:00:31.7]} 36. Bd3 {[%clk 0:01:39.7]} 36... Be5 {[%clk 0:00:25]} 37. b3
{[%clk 0:01:37.3]} 37... Bd6 {[%clk 0:00:24.6]} 38. a4 {[%clk 0:01:36.8]} 38...
Bc5 {[%clk 0:00:24.6]} 39. Nxh5 {[%clk 0:01:34.8]} 39... Nd5 {[%clk 0:00:20.6]}
40. Nf6+ {[%clk 0:01:32.2]} 40... Nxf6 {[%clk 0:00:20.8]} 41. gxf6 {[%clk
0:01:33.1]} 41... Bd6 {[%clk 0:00:19.6]} 42. Kf3 {[%clk 0:01:31.2]} 42... Be5
{[%clk 0:00:20]} 43. f7 {[%clk 0:01:31.2]} 43... Kg7 {[%clk 0:00:20.4]} 44. Bc4
{[%clk 0:01:31.3]} 44... a5 {[%clk 0:00:18.3]} 45. Ke4 {[%clk 0:01:28.4]} 45...
Bd6 {[%clk 0:00:16.8]} 46. Kd5 {[%clk 0:01:26]} 46... Bb4 {[%clk 0:00:15.9]} 47.
Ke6 {[%clk 0:01:23]} 47... b6 {[%clk 0:00:15.9]} 48. Bd3 {[%clk 0:01:22.1]}
48... g5 {[%clk 0:00:14.9]} 49. g4 {[%clk 0:01:18.6]} 49... Bd2 {[%clk
0:00:13.9]} 50. e4 {[%clk 0:01:19]} 50... Bb4 {[%clk 0:00:13.9]} 51. Bc4 {[%clk
0:01:18.9]} 51... Kf8 {[%clk 0:00:12.6]} 52. Kf6 {[%clk 0:01:18.4]} 52... Be7+
{[%clk 0:00:12.8]} 53. Kg6 {[%clk 0:01:18.8]} 53... Bd8 {[%clk 0:00:13.2]} 54.
e5 {[%clk 0:01:16.7]} 54... Be7 {[%clk 0:00:13.6]} 55. Kf5 {[%clk 0:01:13.3]}
55... Bd8 {[%clk 0:00:13.7]} 56. Ke6 {[%clk 0:01:13.9]} 56... Be7 {[%clk
0:00:14]} 57. Kd7 {[%clk 0:01:14.4]} 57... Bc5 {[%clk 0:00:11]} 58. Kc7 {[%clk
0:01:15.1]} 58... Ke7 {[%clk 0:00:08.6]} 59. Kc6 {[%clk 0:01:12.6]} 59... Kf8
{[%clk 0:00:08.4]} 60. Kd7 {[%clk 0:01:10.6]} 60... Be7 {[%clk 0:00:07.9]} 61.
Kc6 {[%clk 0:00:56]} 61... Bc5 {[%clk 0:00:07.8]} 62. Kc7 {[%clk 0:00:44.3]}
62... Ke7 {[%clk 0:00:07.1]} 63. Bd5 {[%clk 0:00:43.5]} 63... Kf8 {[%clk
0:00:06.3]} 64. Kd7 {[%clk 0:00:41.9]} 64... Be7 {[%clk 0:00:05]} 65. Ke6 {[%clk
0:00:42.2]} 65... Bc5 {[%clk 0:00:04.9]} 66. Kf6 {[%clk 0:00:42.5]} 66... Be7+
{[%clk 0:00:05.1]} 67. Kg6 {[%clk 0:00:43.1]} 67... Bd8 {[%clk 0:00:04.7]} 68.
Bc4 {[%clk 0:00:33.6]} 68... Be7 {[%clk 0:00:04.7]} 69. Kf5 {[%clk 0:00:24]}
69... Bd8 {[%clk 0:00:05.1]} 70. Ke6 {[%clk 0:00:24.4]} 70... Be7 {[%clk
0:00:05.3]} 71. Bd5 {[%clk 0:00:19.5]} 71... Bc5 {[%clk 0:00:04]} 72. Kf6 {[%clk
0:00:11.6]} 72... Be7+ {[%clk 0:00:04.9]} 73. Kg6 {[%clk 0:00:11.7]} 73... Bd8
{[%clk 0:00:05.4]} 74. e6 {[%clk 0:00:12.6]} 74... Be7 {[%clk 0:00:05.6]} 75.
Kf5 {[%clk 0:00:12.2]} 75... Bd8 {[%clk 0:00:05.9]} 76. Ke5 {[%clk 0:00:12.5]}
76... Be7 {[%clk 0:00:06.4]} 77. Bc4 {[%clk 0:00:13.4]} 77... Bd8 {[%clk
0:00:05.3]} 78. Kd5 {[%clk 0:00:13.8]} 78... Be7 {[%clk 0:00:05.8]} 79. Kc6
{[%clk 0:00:14.7]} 79... Bc5 {[%clk 0:00:06.1]} 80. Kd7 {[%clk 0:00:14.7]} 80...
Be7 {[%clk 0:00:06.3]} 81. Kc7 {[%clk 0:00:12.5]} 81... Bc5 {[%clk 0:00:06.4]}
82. Bd3 {[%clk 0:00:13.2]} 82... Ke7 {[%clk 0:00:06.3]} 83. Kc6 {[%clk
0:00:12.9]} 83... Kxe6 {[%clk 0:00:04.9]} 84. b4 {[%clk 0:00:10.8]} 84... Bxb4
{[%clk 0:00:03.8]} 85. Kxb6 {[%clk 0:00:10]} 85... Kxf7 {[%clk 0:00:03.6]} 86.
Bf5 {[%clk 0:00:10.4]} 86... Kf6 {[%clk 0:00:03.9]} 87. Kb5 {[%clk 0:00:11.3]}
87... Be1 {[%clk 0:00:04.1]} 88. Kc5 {[%clk 0:00:11.4]} 1/2-1/2